fUST/lending_fUST_20250804
["ID","MTS","AMOUNT","RATE_DAILY","PERIOD"]
[377289430,1754320270151,-460.0,0.00038082,2]
[377289431,1754320270161,-460.0,0.00038082,2]
[377289432,1754320270171,-586.38,0.00038082,2]
[377289433,1754320270180,-670.38,0.00038082,2]
[377289434,1754320270189,-483.92,0.00038082,2]
[377289435,1754320270199,-217.58541696,0.00038082,2]
[377289436,1754320270208,-1441.46,0.00038082,2]
[377289437,1754320270217,-460.0,0.00038082,2]
[377289438,1754320270230,-556.6,0.00038082,2]
[377289439,1754320270239,-839.25,0.00038082,2]
[377289440,1754320270248,-959.24,0.00038082,2]
[377289441,1754320270257,-866.47,0.00038082,2]
[377289442,1754320270267,-2110.54,0.00038082,2]
[377289443,1754320270276,-289.39818008,0.00038082,2]
[377289444,1754320270285,-219.532466,0.00038082,14]
[377289445,1754320270295,-219.532466,0.00038082,14]
[377289446,1754320270305,-460.0,0.00038082,2]
[377289447,1754320270315,-6299.05,0.00038082,2]
[377289448,1754320270324,-527.04,0.00038082,2]
[377289449,1754320270334,-460.0,0.00038082,2]
[377289450,1754320270343,-1035.18,0.00038082,2]
[377289451,1754320270352,-767.32,0.00038082,2]
[377289452,1754320270361,-6855.53,0.00038082,2]
[377289453,1754320270371,-760.58,0.00038082,2]
[377289454,1754320270380,-460.0,0.00038082,2]
[377289455,1754320270389,-1581.22,0.00038082,2]
[377289456,1754320270398,-523.03,0.00038082,2]
[377289457,1754320270409,-494.35,0.00038082,2]
[377289458,1754320270418,-581.46,0.00038082,2]
[377289459,1754320270427,-617.49,0.00038082,2]
[377289460,1754320270436,-780.48,0.00038082,2]
[377289461,1754320270446,-948.56,0.00038082,2]
[377289462,1754320270456,-496.13,0.00038082,2]
[377289463,1754320270465,-3804.14,0.00038082,2]
[377289464,1754320270475,-688.25,0.00038082,2]
[377289465,1754320270484,-460.0,0.00038082,2]
[377289466,1754320270493,-849.14,0.00038082,2]
[377289467,1754320270503,-584.82,0.00038082,2]
[377289468,1754320270512,-647.3,0.00038082,2]
[377289469,1754320270522,-583.5,0.00038082,2]
[377289470,1754320270531,-739.03,0.00038082,2]
[377289471,1754320270541,-619.22,0.00038082,2]
[377289472,1754320270551,-3267.42,0.00038082,2]
[377289473,1754320270560,-553.6,0.00038082,2]
[377289474,1754320270570,-537.06,0.00038082,2]
[377289475,1754320270579,-977.49,0.00038082,2]
[377289476,1754320270589,-2718.21,0.00038082,2]
[377289477,1754320270600,-460.0,0.00038082,2]
[377289478,1754320270610,-557.34,0.00038082,2]
[377289479,1754320270619,-1268.05,0.00038082,2]
[377289480,1754320270628,-816.99,0.00038082,2]
[377289481,1754320270638,-460.0,0.00038082,2]
[377289482,1754320270648,-460.0,0.00038082,2]
[377289483,1754320270657,-644.51,0.00038082,2]
[377289484,1754320270667,-621.34,0.00038082,2]
[377289485,1754320270677,-510.34,0.00038082,2]
[377289486,1754320270687,-480.57,0.00038082,2]
[377289487,1754320270696,-2931.08,0.00038082,2]
[377289488,1754320270705,-757.98,0.00038082,2]
[377289489,1754320270715,-858.24,0.00038082,2]
[377289490,1754320270724,-2661.3,0.00038082,2]
[377289491,1754320270733,-484.17,0.00038082,2]
[377289492,1754320270742,-5634.25,0.00038082,2]
[377289493,1754320270753,-1218.26,0.00038082,2]
[377289494,1754320270762,-1569.94,0.00038082,2]
[377289495,1754320270772,-1002.56,0.00038082,2]
[377289496,1754320270781,-471.5041151,0.00038082,30]
[377289497,1754320270790,-292.8695803,0.00038082,30]
[377289498,1754320270799,-178.6345348,0.00038082,30]
[377289499,1754320270809,-847.34500325,0.00038175,2]
[377289500,1754320270818,-5576.08741323,0.0003821,2]
[377289501,1754320270831,-5641.44,0.000383,14]
[377289502,1754320270841,-460.0,0.00038356,120]
[377289503,1754320270851,-700.92,0.00038356,120]
[377289504,1754320270861,-2764.52,0.00038356,120]
[377289505,1754320270870,-686.95,0.00038356,120]
[377289506,1754320270879,-523.56,0.00038356,120]
[377289507,1754320270889,-460.0,0.00038356,120]
[377289508,1754320270898,-460.0,0.00038356,120]
[377289509,1754320270907,-586.38,0.00038356,120]
[377289510,1754320270917,-670.38,0.00038356,120]
[377289511,1754320270927,-483.92,0.00038356,120]
[377289512,1754320270936,-1441.46,0.00038356,120]
[377289513,1754320270945,-296.58386081,0.00038356,120]
[377289514,1754320270954,-556.6,0.00038356,120]
[377289515,1754320270964,-839.25,0.00038356,120]
[377289516,1754320270973,-959.24,0.00038356,120]
[377289517,1754320270983,-866.47,0.00038356,120]
[377289518,1754320270993,-2110.54,0.00038356,120]
[377289519,1754320271003,-460.0,0.00038356,120]
[377289520,1754320271012,-6299.05,0.00038356,120]
[377289521,1754320271022,-527.04,0.00038356,120]
[377289522,1754320271032,-272.72771644,0.00038356,120]
[377289523,1754320271041,-1035.18,0.00038356,120]
[377289524,1754320271050,-767.32,0.00038356,120]
[377289525,1754320271060,-6855.53,0.00038356,120]
[377289526,1754320271070,-760.58,0.00038356,120]
[377289527,1754320271080,-460.0,0.00038356,60]
[377289528,1754320271089,-1581.22,0.00038356,120]
[377289529,1754320271099,-523.03,0.00038356,120]
[377289530,1754320271108,-494.35,0.00038356,120]
[377289531,1754320271118,-581.46,0.00038356,120]
[377289532,1754320271127,-617.49,0.00038356,120]
[377289533,1754320271136,-780.48,0.00038356,120]
[377289534,1754320271146,-948.56,0.00038356,120]
[377289535,1754320271156,-496.13,0.00038356,120]
[377289536,1754320271166,-3804.14,0.00038356,120]
[377289537,1754320271176,-688.25,0.00038356,120]
[377289538,1754320271187,-460.0,0.00038356,120]
[377289539,1754320271197,-849.14,0.00038356,120]
[377289540,1754320271207,-584.82,0.00038356,120]
[377289541,1754320271216,-647.3,0.00038356,120]
[377289542,1754320271230,-583.5,0.00038356,120]
[377289543,1754320271239,-739.03,0.00038356,21]
[377289544,1754320271249,-619.22,0.00038356,120]
[377289545,1754320271258,-3267.42,0.00038356,120]
[377289546,1754320271268,-553.6,0.00038356,120]
[377289547,1754320271279,-537.06,0.00038356,120]
[377289548,1754320271288,-977.49,0.00038356,120]
[377289549,1754320271298,-2718.21,0.00038356,120]
[377289550,1754320271308,-384.05751586,0.00038356,120]
[377289551,1754320271318,-557.34,0.00038356,120]
[377289552,1754320271328,-1268.05,0.00038356,120]
[377289553,1754320271338,-816.99,0.00038356,120]
[377289554,1754320271347,-460.0,0.00038356,120]
[377289555,1754320271357,-460.0,0.00038356,120]
[377289556,1754320271366,-644.51,0.00038356,120]
[377289557,1754320271375,-621.34,0.00038356,120]
[377289558,1754320271384,-510.34,0.00038356,120]
[377289559,1754320271395,-480.57,0.00038356,120]
[377289560,1754320271404,-2931.08,0.00038356,120]
[377289561,1754320271413,-757.98,0.00038356,120]
[377289562,1754320271423,-4476.64,0.00038356,120]
[377289563,1754320271432,-858.24,0.00038356,120]
[377289564,1754320271442,-2661.3,0.00038356,120]
[377289565,1754320271451,-484.17,0.00038356,120]
[377289566,1754320271461,-5634.25,0.00038356,120]
[377289567,1754320271471,-1218.26,0.00038356,120]
[377289568,1754320271481,-1569.94,0.00038356,120]
[377289569,1754320271490,-1002.56,0.00038356,30]
[377289570,1754320271499,-160.74677935,0.00038466,30]
[377289571,1754320271510,-2244.32,0.000385,7]
[377289572,1754320271519,-151.0,0.000385,120]
[377289573,1754320271528,-151.0,0.0003863,14]
[377289574,1754320271537,-259.809258,0.0003863,14]
[377289575,1754320271546,-259.809258,0.0003863,14]
[377289576,1754320271651,-151.0,0.0003863,14]
[377289577,1754320271664,-271.42271084,0.0003863,120]
[377289578,1754320271674,-700.92,0.0003863,120]
[377289579,1754320271684,-2764.52,0.0003863,120]
[377289580,1754320271693,-686.95,0.0003863,120]
[377289581,1754320271703,-523.56,0.0003863,120]
[377289582,1754320271712,-450.26762079,0.0003863,120]
[377289583,1754320271721,-442.30580467,0.0003863,120]
[377289584,1754320271730,-586.38,0.0003863,120]
[377289585,1754320271740,-670.38,0.0003863,120]
[377289586,1754320271749,-483.92,0.0003863,120]
[377289587,1754320271759,-1441.46,0.0003863,120]
[377289588,1754320271768,-556.6,0.0003863,120]
[377289589,1754320271777,-839.25,0.0003863,120]
[377289590,1754320271786,-959.24,0.0003863,120]
[377289591,1754320271795,-866.47,0.0003863,120]
[377289592,1754320271805,-2110.54,0.0003863,120]
[377289593,1754320271814,-151.0,0.0003863,14]
[377289594,1754320271824,-460.0,0.0003863,120]
[377289595,1754320271833,-6299.05,0.0003863,120]
[377289596,1754320271842,-527.04,0.0003863,120]
[377289597,1754320271852,-1035.18,0.0003863,120]
[377289598,1754320271861,-767.32,0.0003863,120]
[377289599,1754320271871,-6855.53,0.0003863,120]
[377289600,1754320271881,-760.58,0.0003863,120]
[377289601,1754320271890,-460.0,0.0003863,60]
[377289602,1754320271899,-1581.22,0.0003863,120]
[377289603,1754320271909,-523.03,0.0003863,120]
[377289604,1754320271921,-494.35,0.0003863,120]
[377289605,1754320271930,-581.46,0.0003863,120]
[377289606,1754320271940,-617.49,0.0003863,120]
[377289607,1754320271949,-780.48,0.0003863,120]
[377289608,1754320271959,-496.13,0.0003863,120]
[377289609,1754320271969,-948.56,0.0003863,120]
[377289610,1754320271978,-3804.14,0.0003863,120]
[377289611,1754320271988,-688.25,0.0003863,120]
[377289612,1754320271997,-460.0,0.0003863,120]
[377289613,1754320272007,-849.14,0.0003863,120]
[377289614,1754320272017,-584.82,0.0003863,120]
[377289615,1754320272026,-647.3,0.0003863,120]
[377289616,1754320272036,-583.5,0.0003863,120]
[377289617,1754320272045,-739.03,0.0003863,21]
[377289618,1754320272055,-619.22,0.0003863,120]
[377289619,1754320272064,-3267.42,0.0003863,120]
[377289620,1754320272073,-553.6,0.0003863,120]
[377289621,1754320272083,-537.06,0.0003863,120]
[377289622,1754320272092,-977.49,0.0003863,120]
[377289623,1754320272101,-2718.21,0.0003863,120]
[377289624,1754320272111,-557.34,0.0003863,120]
[377289625,1754320272121,-1268.05,0.0003863,120]
[377289626,1754320272132,-816.99,0.0003863,120]
[377289627,1754320272141,-450.83937691,0.0003863,120]
[377289628,1754320272150,-288.01113094,0.0003863,120]
[377289629,1754320272160,-644.51,0.0003863,120]
[377289630,1754320272172,-621.34,0.0003863,120]
[377289631,1754320272182,-510.34,0.0003863,120]
[377289632,1754320272191,-480.57,0.0003863,120]
[377289633,1754320272201,-757.98,0.0003863,120]
[377289634,1754320272210,-858.24,0.0003863,120]
[377289635,1754320272219,-2661.3,0.0003863,120]
[377289636,1754320272232,-484.17,0.0003863,120]
[377289637,1754320272242,-5634.25,0.0003863,120]
[377289638,1754320272251,-1218.26,0.0003863,120]
[377289639,1754320272260,-1569.94,0.0003863,120]
[377289640,1754320272270,-1002.56,0.0003863,30]
[377289641,1754320272279,-200.0,0.00038656,120]
[377289642,1754320272289,-206.0,0.0003866,30]
[377289643,1754320272298,-219.532466,0.00038811,14]
[377289644,1754320272309,-219.53245773,0.00038811,14]
[377289645,1754320272318,-500.0,0.00038879,7]
[377289646,1754320272328,-28896.17813092,0.000389,7]
[377289647,1754320272337,-151.0,0.00038904,14]
[377289648,1754320272346,-259.809258,0.00038904,14]
[377289649,1754320272355,-259.809263,0.00038904,14]
[377289650,1754320272364,-700.92,0.00038904,120]
[377289651,1754320272373,-2764.52,0.00038904,120]
[377289652,1754320272383,-686.95,0.00038904,120]
[377289653,1754320272393,-523.56,0.00038904,120]
[377289654,1754320272402,-586.38,0.00038904,120]
[377289655,1754320272411,-670.38,0.00038904,120]
[377289656,1754320272421,-483.92,0.00038904,120]
[377289657,1754320272430,-1441.46,0.00038904,120]
[377289658,1754320272438,-556.6,0.00038904,120]
[377289659,1754320272447,-839.25,0.00038904,120]
[377289660,1754320272457,-959.24,0.00038904,120]
[377289661,1754320272466,-866.47,0.00038904,120]
[377289662,1754320272475,-2110.54,0.00038904,120]
[377289663,1754320272484,-460.0,0.00038904,120]
[377289664,1754320272493,-6299.05,0.00038904,120]
[377289665,1754320272502,-527.04,0.00038904,120]
[377289666,1754320272511,-1035.18,0.00038904,120]
[377289667,1754320272520,-767.32,0.00038904,120]
[377289668,1754320272529,-6855.53,0.00038904,120]
[377289669,1754320272538,-760.58,0.00038904,120]
[377289670,1754320272547,-424.94876603,0.00038904,60]
[377289671,1754320272556,-1581.22,0.00038904,120]
[377289672,1754320272565,-523.03,0.00038904,120]
[377289673,1754320272574,-494.35,0.00038904,120]
[377289674,1754320272583,-581.46,0.00038904,120]
[377289675,1754320272593,-617.49,0.00038904,120]
[377289676,1754320272602,-780.48,0.00038904,120]
[377289677,1754320272611,-496.13,0.00038904,120]
[377289678,1754320272621,-948.56,0.00038904,120]
[377289679,1754320272630,-688.25,0.00038904,120]
[377289680,1754320272639,-3804.14,0.00038904,120]
[377289681,1754320272647,-193.0096423,0.00038904,120]
[377289682,1754320272656,-849.14,0.00038904,120]
[377289683,1754320272666,-584.82,0.00038904,120]
[377289684,1754320272675,-647.3,0.00038904,120]
[377289685,1754320272685,-583.5,0.00038904,120]
[377289686,1754320272694,-739.03,0.00038904,21]
[377289687,1754320272703,-619.22,0.00038904,120]
[377289688,1754320272712,-3267.42,0.00038904,120]
[377289689,1754320272721,-553.6,0.00038904,120]
[377289690,1754320272730,-537.06,0.00038904,120]
[377289691,1754320272739,-977.49,0.00038904,120]
[377289692,1754320272748,-2718.21,0.00038904,120]
[377289693,1754320272757,-557.34,0.00038904,120]
[377289694,1754320272767,-1268.05,0.00038904,120]
[377289695,1754320272776,-816.99,0.00038904,120]
[377289696,1754320272785,-644.51,0.00038904,120]
[377289697,1754320272794,-621.34,0.00038904,120]
[377289698,1754320272804,-510.34,0.00038904,120]
[377289699,1754320272814,-480.57,0.00038904,120]
[377289700,1754320272823,-757.98,0.00038904,120]
[377289701,1754320272832,-858.24,0.00038904,120]
[377289702,1754320272841,-2661.3,0.00038904,120]
[377289703,1754320272851,-484.17,0.00038904,120]
[377289704,1754320272860,-5634.25,0.00038904,120]
[377289705,1754320272870,-1218.26,0.00038904,120]
[377289706,1754320272879,-1569.94,0.00038904,120]
[377289707,1754320272888,-1002.56,0.00038904,30]
[377289708,1754320272897,-178.6345348,0.00038904,30]
[377289709,1754320272906,-12500.0,0.00038912,10]
[377289710,1754320272916,-12500.0,0.00038921,10]
[377289711,1754320272925,-12500.0,0.0003893,10]
[377289712,1754320272934,-12500.0,0.00038938,10]
[377289713,1754320272943,-12500.0,0.00038947,10]
[377289714,1754320272952,-12500.0,0.00038956,10]
[377289715,1754320272961,-500.0,0.00038957,7]
[377289716,1754320272969,-160.74677935,0.00038959,30]
[377289717,1754320272978,-12500.0,0.00038965,10]
[377289718,1754320272988,-151.0,0.00038965,14]
[377289719,1754320272997,-12500.0,0.00038974,10]
[377289720,1754320273005,-12500.0,0.00038982,10]
[377289721,1754320273014,-12500.0,0.00038991,10]
[377289722,1754320273023,-1360.0,0.00039,120]
[377289723,1754320273032,-574.31010623,0.00039,14]
[377289724,1754320273041,-12500.0,0.00039,10]
[377289725,1754320273050,-12500.0,0.00039004,10]
[377289726,1754320273059,-500.0,0.0003904,7]
[377289727,1754320273069,-500.0,0.00039083,7]
[377289728,1754320273078,-1300.0,0.00039089,7]
[377289729,1754320273087,-500.0,0.00039101,7]
[377289730,1754320273095,-500.0,0.00039147,7]
[377289731,1754320273104,-151.0,0.00039178,14]
[377289732,1754320273113,-700.93763029,0.00039178,120]
[377289733,1754320273123,-2764.56663298,0.00039178,120]
[377289734,1754320273131,-687.17483259,0.00039178,120]
[377289735,1754320273140,-523.63287926,0.00039178,120]
[377289736,1754320273149,-586.47571953,0.00039178,120]
[377289737,1754320273158,-670.58544164,0.00039178,120]
[377289738,1754320273169,-483.93328635,0.00039178,120]
[377289739,1754320273177,-1441.63251358,0.00039178,120]
[377289740,1754320273187,-556.66333081,0.00039178,120]
[377289741,1754320273196,-839.35847316,0.00039178,120]
[377289742,1754320273205,-959.42220745,0.00039178,120]
[377289743,1754320273215,-866.57595457,0.00039178,120]
[377289744,1754320273226,-2110.58362857,0.00039178,120]
[377289745,1754320273236,-230.28262742,0.00039178,120]
[377289746,1754320273245,-6299.24303879,0.00039178,120]
[377289747,1754320273255,-527.04578845,0.00039178,120]
[377289748,1754320273264,-1035.25529734,0.00039178,120]
[377289749,1754320273274,-767.38823252,0.00039178,120]
[377289750,1754320273283,-6855.72099134,0.00039178,120]
[377289751,1754320273292,-760.63103975,0.00039178,120]
[377289752,1754320273301,-523.11364728,0.00039178,120]
[377289753,1754320273311,-1581.44163421,0.00039178,120]
[377289754,1754320273320,-494.35735502,0.00039178,120]
[377289755,1754320273329,-581.47397677,0.00039178,120]
[377289756,1754320273339,-617.55743338,0.00039178,120]
[377289757,1754320273348,-780.50108294,0.00039178,120]
[377289758,1754320273358,-496.35856756,0.00039178,120]
[377289759,1754320273367,-948.76598021,0.00039178,120]
[377289760,1754320273376,-688.34850622,0.00039178,120]
[377289761,1754320273385,-3804.33815815,0.00039178,120]
[377289762,1754320273395,-849.23346864,0.00039178,120]
[377289763,1754320273404,-585.0204338,0.00039178,120]
[377289764,1754320273413,-647.42775381,0.00039178,120]
[377289765,1754320273423,-583.57288768,0.00039178,120]
[377289766,1754320273433,-739.11744472,0.00039178,21]
[377289767,1754320273442,-619.31538986,0.00039178,120]
[377289768,1754320273451,-3267.54246484,0.00039178,120]
[377289769,1754320273461,-553.66903966,0.00039178,120]
[377289770,1754320273470,-537.1214511,0.00039178,120]
[377289771,1754320273479,-977.59897196,0.00039178,120]
[377289772,1754320273488,-2718.44417035,0.00039178,120]
[377289773,1754320273497,-557.44656585,0.00039178,120]
[377289774,1754320273507,-1268.09101773,0.00039178,120]
[377289775,1754320273516,-817.19811902,0.00039178,120]
[377289776,1754320273526,-644.70000524,0.00039178,120]
[377289777,1754320273534,-621.478691,0.00039178,120]
[377289778,1754320273543,-510.50102497,0.00039178,120]
[377289779,1754320273552,-480.74262757,0.00039178,120]
[377289780,1754320273561,-758.0048064,0.00039178,120]
[377289781,1754320273570,-858.28069975,0.00039178,120]
[377289782,1754320273580,-2661.50660876,0.00039178,120]
[377289783,1754320273589,-484.30168897,0.00039178,120]
[377289784,1754320273599,-5634.46105864,0.00039178,120]
[377289785,1754320273609,-1218.2867204,0.00039178,120]
[377289786,1754320273618,-1570.11469731,0.00039178,120]
[377289787,1754320273627,-1002.6429452,0.00039178,30]
[377289788,1754320273637,-500.0,0.00039212,7]
[377289789,1754320273646,-37083.47,0.000393,14]
[377289790,1754320273655,-500.0,0.00039383,7]
[377289791,1754320273666,-650.74,0.000394,7]
[377289792,1754320273675,-173.175374,0.00039406,2]
[377289793,1754320273684,-155.0,0.0003945,2]
[377289794,1754320273694,-200.0,0.00039455,120]
[377289795,1754320273704,-640.3451,0.000395,2]
[377289796,1754320273714,-255.0,0.00039638,2]
[377289797,1754320273723,-165.65578546,0.00039638,2]
[377289798,1754320273733,-500.0,0.0003964,7]
[377289799,1754320273744,-200.0,0.00039654,120]
[377289800,1754320273848,-4476.64,0.00039726,120]
[377289801,1754320273858,-500.0,0.00039744,7]
[377289802,1754320273868,-206.0,0.0003982,30]
[377289803,1754320273878,-878.3767476,0.00039881,120]
[377289804,1754320273888,-5641.44,0.000399,14]
[377289805,1754320273898,-188.69931726,0.000399,120]
[377289806,1754320273907,-970.0,0.00039937,2]
[377289807,1754320273917,-2148.0,0.00039937,2]
[377289808,1754320273927,-635.0,0.00039937,2]
[377289809,1754320273937,-408.0,0.00039937,2]
[377289810,1754320273947,-4000.0,0.00039959,4]
[377289811,1754320273956,-4000.0,0.00039972,4]
[377289812,1754320273966,-4000.0,0.00039986,4]
[377289813,1754320273976,-692.18,0.00039989,120]
[377289814,1754320273985,-692.18,0.00039989,120]
[377289815,1754320273996,-692.18,0.00039989,120]
[377289816,1754320274006,-692.18,0.00039989,120]
[377289817,1754320274015,-692.18,0.00039989,120]
[377289818,1754320274025,-692.18,0.00039989,120]
[377289819,1754320274034,-692.18,0.00039989,120]
[377289820,1754320274044,-692.18,0.00039989,120]
[377289821,1754320274053,-692.18,0.00039989,120]
[377289822,1754320274063,-692.18,0.00039989,120]
[377289823,1754320274072,-692.18,0.00039989,120]
[377289824,1754320274081,-692.18,0.00039989,120]
[377289825,1754320274091,-692.18,0.00039989,120]
[377289826,1754320274102,-692.18,0.00039989,120]
[377289827,1754320274112,-692.18,0.00039989,120]
[377289828,1754320274122,-692.18,0.00039989,120]
[377289829,1754320274131,-692.18,0.00039989,120]
[377289830,1754320274140,-692.18,0.00039989,120]
[377289831,1754320274149,-692.18,0.00039989,120]
[377289832,1754320274158,-692.18,0.00039989,120]
[377289833,1754320274168,-692.18,0.00039989,120]
[377289834,1754320274177,-692.18,0.00039989,120]
[377289835,1754320274187,-692.18,0.00039989,120]
[377289836,1754320274196,-692.4193611,0.00039989,120]
[377289837,1754320274205,-500.0,0.00039992,5]
[377289838,1754320274214,-389.46799241,0.00039999,31]
[377289839,1754320274225,-611.50335555,0.00039999,31]
[377289840,1754320274236,-273.90185067,0.00039999,7]
[377289841,1754320274246,-500.0,0.00039999,7]
[377289842,1754320274256,-500.0,0.00039999,2]
[377289843,1754320274267,-500.0,0.00039999,2]
[377289844,1754320274276,-500.0,0.00039999,2]
[377289845,1754320274285,-500.0,0.00039999,2]
[377289846,1754320274295,-94005.29096538,0.0004,120]
[377289847,1754320274369,-1649.99307732,0.0004,120]
[377289848,1754320274408,-13362.95947522,0.0004,120]
[377289849,1754320274451,652.98587054,0.00030299,2]
[377289850,1754320274475,4347.01412946,0.00030299,2]
[377289851,1754320274736,251.75196893,0.0003028,2]
[377289852,1754320275327,-218.12637201,0.00030758,2]
[377289853,1754320299974,250.0,0.00029632,2]
[377289854,1754320323083,5151.23390161,0.00030299,7]
[377289855,1754320323110,7495.64049482,0.00030299,7]
[377289856,1754320332482,155.032681,0.00029694,25]
[377289857,1754320333393,155.032681,0.00026362,20]
[377289858,1754320336904,527.23761927,0.00028,3]
[377289859,1754320337055,-2000.0,0.0003041,30]
[377289860,1754320337081,-188.45,0.0003041,30]
[377289861,1754320337105,-1600.0,0.00030758,2]
[377289862,1754320337131,-500.0,0.00030759,2]
[377289863,1754320337157,-500.0,0.00030759,2]
[377289864,1754320337180,-500.0,0.00030759,2]
[377289865,1754320337204,-500.0,0.00030759,2]
[377289866,1754320337232,-500.0,0.00030759,2]
[377289867,1754320337265,-593.92130135,0.00030759,2]
[377289868,1754320337291,-200.0,0.00030759,2]
[377289869,1754320337316,-500.0,0.00030759,2]
[377289870,1754320337341,-500.0,0.00030759,2]
[377289871,1754320337366,-500.0,0.00030759,2]
[377289872,1754320337391,-500.0,0.00030759,2]
[377289873,1754320337417,-500.0,0.00030759,2]
[377289874,1754320337568,-184.06814985,0.00030759,2]
[377289875,1754320337594,-500.0,0.00030759,2]
[377289876,1754320337620,-500.0,0.00030759,2]
[377289877,1754320337646,-500.0,0.00030759,2]
[377289878,1754320337670,-500.0,0.00030759,2]
[377289879,1754320337694,-500.0,0.00030759,2]
[377289880,1754320337720,-500.0,0.00030759,2]
[377289881,1754320337748,-500.0,0.00030759,2]
[377289882,1754320337776,-96.5605488,0.00030759,2]
[377289883,1754320337860,527.23761927,0.00029,10]
[377289884,1754320339724,157.39292989,8.3e-07,2]
[377289885,1754320339968,157.39292989,8.3e-07,2]
[377289886,1754320340079,157.39292989,8.3e-07,2]
[377289887,1754320340298,157.39292989,8.3e-07,2]
[377289888,1754320340406,157.39292989,8.3e-07,2]
[377289889,1754320340505,157.39292989,8.3e-07,2]
[377289890,1754320340731,157.39292989,8.3e-07,2]
[377289891,1754320340884,38.06839541,8.3e-07,2]
[377289892,1754320340910,119.32453448,8.3e-07,2]
[377289893,1754320340999,157.39292989,8.3e-07,2]
[377289894,1754320341114,157.39292989,8.3e-07,2]
[377289895,1754320401651,-180.0,0.0003031,2]
[377289896,1754320466253,5000.0,0.00030299,2]
[377289897,1754320469046,2452.3402413,0.00030098,2]
[377289898,1754320482414,2113.54936444,0.00030299,2]
[377289899,1754320482443,2886.45063556,0.00030299,2]
[377289900,1754320496692,668.773812,0.00025246,2]
[377289901,1754320497065,611.84371041,0.00025507,2]
[377289902,1754320497426,305.92185521,0.0002946,2]
[377289903,1754320498162,5000.0,0.00030299,2]
[377289904,1754320514012,527.00998682,0.00030299,2]
[377289905,1754320514040,4472.99001318,0.00030299,2]
[377289906,1754320532729,-23.46652824,0.0003031,2]
[377289907,1754320532751,-227.0,0.00030364,2]
[377289908,1754320532774,-1200.0,0.00030364,2]
[377289909,1754320532801,5000.0,0.00030299,2]
[377289910,1754320542423,1728.2811549,0.00030107,2]
[377289911,1754320549537,5000.0,0.00030365,2]
[377289912,1754320563656,399.0,0.00030364,2]
[377289913,1754320567700,5000.0,0.00030365,2]
[377289914,1754320573581,192.34,0.00030299,30]
[377289915,1754320584045,5000.0,0.00030365,2]
[377289916,1754320593079,826.0,0.00030364,2]
[377289917,1754320599882,1694.91231686,0.00030365,2]
[377289918,1754320627938,166.4230579,0.00029962,2]
[377289919,1754320631318,155.032681,0.00029694,25]
[377289920,1754320690186,1000.0,0.00029509,30]
[377289921,1754320707817,193.185479,0.00029962,2]
[377289922,1754320713851,170.97,0.0002968,30]
[377289923,1754320714275,170.97,0.00030137,30]
[377289924,1754320746847,2000.0,0.00030365,87]
[377289925,1754320751013,1040.15289603,0.00030265,2]
[377289926,1754320773021,700.0,0.00030365,30]
[377289929,1754320781942,165.535052,0.00013699,2]
[377289930,1754320782169,165.535052,0.00021918,2]
[377289931,1754320782587,165.535052,0.00030137,2]